fUST/lending_fUST_20240803
["ID","MTS","AMOUNT","RATE_DAILY","PERIOD"]
[333939542,1722639055845,-500.0,0.00015068,2]
[333939543,1722639055856,-500.0,0.00015068,2]
[333939544,1722639055865,-243.476039,0.00015068,2]
[333939545,1722639055875,-500.0,0.00015068,2]
[333939546,1722639055886,-243.476039,0.00015068,2]
[333939547,1722639055897,-500.0,0.00015068,2]
[333939548,1722639055907,-500.0,0.00015068,2]
[333939549,1722639055917,-500.0,0.00015068,2]
[333939550,1722639055926,-719.99,0.00015068,2]
[333939551,1722639055939,-500.0,0.00015068,2]
[333939552,1722639055948,-842.3,0.00015068,2]
[333939553,1722639055958,-1112.0,0.00015068,2]
[333939554,1722639055967,-151.0,0.00015068,2]
[333939555,1722639055979,-500.0,0.00015068,2]
[333939556,1722639055988,-500.0,0.00015068,2]
[333939557,1722639055999,-151.0,0.00015068,2]
[333939558,1722639056008,-500.0,0.00015068,2]
[333939559,1722639056019,-180.173268,0.00015068,2]
[333939560,1722639056029,-180.173268,0.00015068,2]
[333939561,1722639056039,-505.04,0.00015068,2]
[333939562,1722639056048,-500.0,0.00015068,2]
[333939563,1722639056059,-500.0,0.00015068,2]
[333939564,1722639056070,-500.0,0.00015068,2]
[333939565,1722639056079,-577.08806387,0.00015068,2]
[333939566,1722639056089,-500.0,0.00015068,2]
[333939567,1722639056098,-500.0,0.00015068,2]
[333939568,1722639056108,-500.0,0.00015068,2]
[333939569,1722639056117,-500.0,0.00015068,2]
[333939570,1722639056127,-597.7,0.00015068,2]
[333939571,1722639056137,-500.0,0.00015068,2]
[333939572,1722639056146,-500.0,0.00015068,2]
[333939573,1722639056156,-500.0,0.00015068,2]
[333939574,1722639056165,-545.02,0.00015068,2]
[333939575,1722639056175,-500.0,0.00015068,2]
[333939576,1722639056184,-500.0,0.00015068,2]
[333939577,1722639056194,-500.0,0.00015068,2]
[333939578,1722639056204,-959.31,0.00015068,2]
[333939579,1722639056213,-500.0,0.00015068,2]
[333939580,1722639056223,-500.0,0.00015068,2]
[333939581,1722639056232,-500.0,0.00015068,2]
[333939582,1722639056241,-500.0,0.00015068,2]
[333939583,1722639056251,-500.0,0.00015068,2]
[333939584,1722639056260,-500.0,0.00015068,2]
[333939585,1722639056270,-2618.99,0.00015068,2]
[333939586,1722639056279,-500.0,0.00015068,2]
[333939587,1722639056288,-500.0,0.00015068,2]
[333939588,1722639056298,-824.318801,0.00015068,2]
[333939589,1722639056309,-500.0,0.00015068,2]
[333939590,1722639056319,-500.0,0.00015068,2]
[333939591,1722639056328,-824.318801,0.00015068,2]
[333939592,1722639056347,-500.0,0.00015068,2]
[333939593,1722639056359,-500.0,0.00015068,2]
[333939594,1722639056369,-962.92,0.00015068,2]
[333939595,1722639056379,-500.0,0.00015068,2]
[333939596,1722639056389,-500.0,0.00015068,2]
[333939597,1722639056399,-500.0,0.00015068,2]
[333939598,1722639056410,-827.276677,0.00015068,2]
[333939599,1722639056420,-500.0,0.00015068,2]
[333939600,1722639056430,-500.0,0.00015068,2]
[333939601,1722639056443,-827.276677,0.00015068,2]
[333939602,1722639056455,-500.0,0.00015068,2]
[333939603,1722639056467,-716.48,0.00015068,2]
[333939604,1722639056477,-500.0,0.00015068,2]
[333939605,1722639056488,-500.0,0.00015068,2]
[333939606,1722639056500,-500.0,0.00015068,2]
[333939607,1722639056511,-150.112233,0.000151,2]
[333939608,1722639056521,-150.0,0.00015123,2]
[333939609,1722639056531,-582.305,0.00015123,2]
[333939610,1722639056542,-1410.0,0.00015123,2]
[333939611,1722639056552,-212.373,0.00015123,2]
[333939612,1722639056562,-150.0,0.00015204,2]
[333939613,1722639056572,-3200.0,0.00015204,2]
[333939614,1722639056582,-982.73,0.00015285,2]
[333939615,1722639056592,-500.0,0.00015286,2]
[333939616,1722639056602,-2446.11,0.00015286,2]
[333939617,1722639056612,-500.0,0.00015286,2]
[333939618,1722639056622,-151.0,0.00015297,2]
[333939619,1722639056634,-150.112233,0.000153,2]
[333939620,1722639056647,-982.73,0.00015341,2]
[333939621,1722639056658,-500.0,0.00015342,2]
[333939622,1722639056668,-500.0,0.00015342,2]
[333939623,1722639056679,-528.16,0.00015342,2]
[333939624,1722639056691,-457.79257691,0.00015342,2]
[333939625,1722639056702,-500.0,0.00015342,2]
[333939626,1722639056712,-500.0,0.00015342,2]
[333939627,1722639056723,-500.0,0.00015342,2]
[333939628,1722639056734,-500.0,0.00015342,2]
[333939629,1722639056744,-550.95,0.00015342,2]
[333939630,1722639056754,-500.0,0.00015342,2]
[333939631,1722639056764,-151.0,0.00015342,2]
[333939632,1722639056774,-500.0,0.00015342,2]
[333939633,1722639056784,-500.0,0.00015342,2]
[333939634,1722639056794,-500.0,0.00015342,2]
[333939635,1722639056804,-500.0,0.00015342,2]
[333939636,1722639056815,-500.0,0.00015342,2]
[333939637,1722639056824,-711.28,0.00015342,2]
[333939638,1722639056834,-500.0,0.00015342,2]
[333939639,1722639056844,-598.37,0.00015342,2]
[333939640,1722639056854,-817.54,0.00015342,2]
[333939641,1722639056864,-299.5723814,0.00015342,2]
[333939642,1722639056874,-500.0,0.00015342,2]
[333939643,1722639056884,-151.0,0.00015342,2]
[333939644,1722639056895,-500.0,0.00015342,2]
[333939645,1722639056905,-686.49,0.00015342,2]
[333939646,1722639056916,-151.0,0.00015342,2]
[333939647,1722639056926,-500.0,0.00015342,2]
[333939648,1722639056938,-500.0,0.00015342,2]
[333939649,1722639056947,-151.0,0.00015342,2]
[333939650,1722639056957,-1275.86,0.00015342,2]
[333939651,1722639056969,-500.0,0.00015342,2]
[333939652,1722639056980,-500.0,0.00015342,2]
[333939653,1722639056990,-500.0,0.00015342,2]
[333939654,1722639057000,-514.31,0.00015342,2]
[333939655,1722639057011,-500.0,0.00015342,2]
[333939656,1722639057021,-2032.67,0.00015342,2]
[333939657,1722639057031,-593.28,0.00015342,2]
[333939658,1722639057041,-500.0,0.00015342,2]
[333939659,1722639057052,-500.0,0.00015342,2]
[333939660,1722639057062,-500.0,0.00015342,2]
[333939661,1722639057071,-500.0,0.00015342,2]
[333939662,1722639057082,-500.0,0.00015342,2]
[333939663,1722639057091,-500.0,0.00015342,2]
[333939664,1722639057101,-500.0,0.00015342,2]
[333939665,1722639057111,-500.0,0.00015342,2]
[333939666,1722639057121,-500.0,0.00015342,2]
[333939667,1722639057131,-500.0,0.00015342,2]
[333939668,1722639057141,-719.99,0.00015342,2]
[333939669,1722639057151,-842.3,0.00015342,2]
[333939670,1722639057160,-1112.0,0.00015342,2]
[333939671,1722639057169,-500.0,0.00015342,2]
[333939672,1722639057179,-621.96,0.00015342,2]
[333939673,1722639057190,-259.792668,0.00015342,2]
[333939674,1722639057199,-259.792668,0.00015342,2]
[333939675,1722639057210,-505.04,0.00015342,2]
[333939676,1722639057220,-500.0,0.00015342,2]
[333939677,1722639057229,-773.82426,0.00015342,2]
[333939678,1722639057239,-773.82426,0.00015342,2]
[333939679,1722639057249,-500.0,0.00015342,2]
[333939680,1722639057259,-500.0,0.00015342,2]
[333939681,1722639057269,-500.0,0.00015342,2]
[333939682,1722639057280,-500.0,0.00015342,2]
[333939683,1722639057290,-500.0,0.00015342,2]
[333939684,1722639057300,-597.7,0.00015342,2]
[333939685,1722639057311,-500.0,0.00015342,2]
[333939686,1722639057322,-500.0,0.00015342,2]
[333939687,1722639057334,-545.02,0.00015342,2]
[333939688,1722639057345,-500.0,0.00015342,2]
[333939689,1722639057356,-500.0,0.00015342,2]
[333939690,1722639057367,-500.0,0.00015342,2]
[333939691,1722639057379,-959.31,0.00015342,2]
[333939692,1722639057390,-500.0,0.00015342,2]
[333939693,1722639057400,-351.38651064,0.00015342,2]
[333939694,1722639057410,-399.974674,0.00015342,2]
[333939695,1722639057420,-500.0,0.00015342,2]
[333939696,1722639057429,-399.974674,0.00015342,2]
[333939697,1722639057441,-500.0,0.00015342,2]
[333939698,1722639057451,-2618.99,0.00015342,2]
[333939699,1722639057463,-500.0,0.00015342,2]
[333939700,1722639057473,-172.6,0.00015342,2]
[333939701,1722639057484,-500.0,0.00015342,2]
[333939702,1722639057494,-500.0,0.00015342,2]
[333939703,1722639057505,-500.0,0.00015342,2]
[333939704,1722639057515,-500.0,0.00015342,2]
[333939705,1722639057525,-962.92,0.00015342,2]
[333939706,1722639057534,-500.0,0.00015342,2]
[333939707,1722639057545,-500.0,0.00015342,2]
[333939708,1722639057555,-500.0,0.00015342,2]
[333939709,1722639057564,-500.0,0.00015342,2]
[333939710,1722639057574,-500.0,0.00015342,2]
[333939711,1722639057584,-500.0,0.00015342,2]
[333939712,1722639057595,-716.48,0.00015342,2]
[333939713,1722639057604,-500.0,0.00015342,2]
[333939714,1722639057614,-500.0,0.00015342,2]
[333939715,1722639057624,-500.0,0.00015342,2]
[333939716,1722639057634,-153.1107178,0.00015494,2]
[333939717,1722639057644,-150.112233,0.000155,2]
[333939718,1722639057655,-500.0,0.0001556,2]
[333939719,1722639057665,-2446.11,0.0001556,2]
[333939720,1722639057675,-824.318801,0.0001556,2]
[333939721,1722639057686,-824.318801,0.0001556,2]
[333939722,1722639057787,-500.0,0.0001556,2]
[333939723,1722639057797,-827.276677,0.0001556,2]
[333939724,1722639057807,-827.276677,0.0001556,2]
[333939725,1722639057819,-954.0,0.000156,2]
[333939726,1722639057829,-151.0,0.00015606,2]
[333939727,1722639057840,-151.0,0.00015606,2]
[333939728,1722639057851,-151.0,0.00015606,2]
[333939729,1722639057861,-243.476039,0.00015606,2]
[333939730,1722639057870,-243.476039,0.00015606,2]
[333939731,1722639057880,-151.0,0.00015606,2]
[333939732,1722639057889,-151.0,0.00015606,2]
[333939733,1722639057899,-180.173268,0.00015606,2]
[333939734,1722639057908,-180.173268,0.00015606,2]
[333939735,1722639057919,-982.73,0.00015615,2]
[333939736,1722639057929,-500.0,0.00015616,2]
[333939737,1722639057940,-500.0,0.00015616,2]
[333939738,1722639057950,-528.16,0.00015616,2]
[333939739,1722639057959,-500.0,0.00015616,2]
[333939740,1722639057970,-500.0,0.00015616,2]
[333939741,1722639057982,-500.0,0.00015616,2]
[333939742,1722639057991,-500.0,0.00015616,2]
[333939743,1722639058003,-550.95,0.00015616,2]
[333939744,1722639058015,-500.0,0.00015616,2]
[333939745,1722639058026,-500.0,0.00015616,2]
[333939746,1722639058037,-500.0,0.00015616,2]
[333939747,1722639058052,-151.0,0.00015616,2]
[333939748,1722639058063,-547.86,0.00015616,2]
[333939749,1722639058072,-500.0,0.00015616,2]
[333939750,1722639058081,-711.28,0.00015616,2]
[333939751,1722639058090,-151.0,0.00015616,2]
[333939752,1722639058100,-548.84354488,0.00015616,2]
[333939753,1722639058109,-232.074078,0.00015616,2]
[333939754,1722639058120,-232.074078,0.00015616,2]
[333939755,1722639058130,-598.37,0.00015616,2]
[333939756,1722639058140,-616.214266,0.00015616,2]
[333939757,1722639058151,-817.54,0.00015616,2]
[333939758,1722639058161,-394.219739,0.00015616,2]
[333939759,1722639058171,-500.0,0.00015616,2]
[333939760,1722639058184,-394.219739,0.00015616,2]
[333939761,1722639058194,-440.7,0.00015616,2]
[333939762,1722639058203,-686.49,0.00015616,2]
[333939763,1722639058212,-500.0,0.00015616,2]
[333939764,1722639058222,-1275.86,0.00015616,2]
[333939765,1722639058231,-600.76,0.00015616,2]
[333939766,1722639058240,-500.0,0.00015616,2]
[333939767,1722639058251,-514.31,0.00015616,2]
[333939768,1722639058260,-500.0,0.00015616,2]
[333939769,1722639058270,-2032.67,0.00015616,2]
[333939770,1722639058279,-593.28,0.00015616,2]
[333939771,1722639058289,-500.0,0.00015616,2]
[333939772,1722639058298,-500.0,0.00015616,2]
[333939773,1722639058307,-500.0,0.00015616,2]
[333939774,1722639058317,-500.0,0.00015616,2]
[333939775,1722639058326,-500.0,0.00015616,2]
[333939776,1722639058336,-500.0,0.00015616,2]
[333939777,1722639058345,-500.0,0.00015616,2]
[333939778,1722639058355,-500.0,0.00015616,2]
[333939779,1722639058366,-500.0,0.00015616,2]
[333939780,1722639058375,-719.99,0.00015616,2]
[333939781,1722639058385,-842.3,0.00015616,2]
[333939782,1722639058394,-1112.0,0.00015616,2]
[333939783,1722639058404,-500.0,0.00015616,2]
[333939784,1722639058413,-505.04,0.00015616,2]
[333939785,1722639058423,-500.0,0.00015616,2]
[333939786,1722639058434,-500.0,0.00015616,2]
[333939787,1722639058445,-500.0,0.00015616,2]
[333939788,1722639058454,-500.0,0.00015616,2]
[333939789,1722639058463,-500.0,0.00015616,2]
[333939790,1722639058473,-500.0,0.00015616,2]
[333939791,1722639058483,-597.7,0.00015616,2]
[333939792,1722639058493,-500.0,0.00015616,2]
[333939793,1722639058502,-500.0,0.00015616,2]
[333939794,1722639058512,-545.02,0.00015616,2]
[333939795,1722639058521,-500.0,0.00015616,2]
[333939796,1722639058531,-500.0,0.00015616,2]
[333939797,1722639058540,-500.0,0.00015616,2]
[333939798,1722639058550,-959.31,0.00015616,2]
[333939799,1722639058561,-500.0,0.00015616,2]
[333939800,1722639058571,-500.0,0.00015616,2]
[333939801,1722639058580,-2618.99,0.00015616,2]
[333939802,1722639058590,-500.0,0.00015616,2]
[333939803,1722639058599,-500.0,0.00015616,2]
[333939804,1722639058608,-500.0,0.00015616,2]
[333939805,1722639058618,-962.92,0.00015616,2]
[333939806,1722639058629,-500.0,0.00015616,2]
[333939807,1722639058639,-500.0,0.00015616,2]
[333939808,1722639058650,-500.0,0.00015616,2]
[333939809,1722639058664,-500.0,0.00015616,2]
[333939810,1722639058674,-500.0,0.00015616,2]
[333939811,1722639058685,-716.48,0.00015616,2]
[333939812,1722639058696,-500.0,0.00015616,2]
[333939813,1722639058706,-500.0,0.00015616,2]
[333939814,1722639058716,-500.0,0.00015616,2]
[333939815,1722639058726,-982.73,0.00015698,2]
[333939816,1722639058737,-151.0,0.00015699,2]
[333939817,1722639058747,-7773.32703226,0.00015707,2]
[333939818,1722639058757,-151.0,0.00015707,2]
[333939819,1722639058768,-982.73,0.00015707,2]
[333939820,1722639058778,-259.792668,0.00015707,2]
[333939821,1722639058788,-259.792668,0.00015707,2]
[333939822,1722639058798,-773.82426,0.00015707,2]
[333939823,1722639058810,-773.82426,0.00015707,2]
[333939824,1722639058820,-399.974674,0.00015707,2]
[333939825,1722639058830,-399.974674,0.00015707,2]
[333939826,1722639058840,-3087.10662957,0.00015708,2]
[333939827,1722639058850,-1763.09284608,0.00015708,2]
[333939828,1722639058863,-1714.52513684,0.00015708,2]
[333939829,1722639058874,-1382.67089992,0.00015708,2]
[333939830,1722639058884,-1500.0,0.00015708,2]
[333939831,1722639058894,-1438.00560066,0.00015708,2]
[333939832,1722639058904,-1991.27486297,0.00015708,2]
[333939833,1722639058914,-2138.73869103,0.00015708,2]
[333939834,1722639058923,-7000.45004307,0.00015708,2]
[333939835,1722639058932,-1610.37989416,0.00015708,2]
[333939836,1722639058947,-2124.13912697,0.00015708,2]
[333939837,1722639058956,-2162.15296103,0.00015708,2]
[333939838,1722639058966,-2277.7800425,0.00015708,3]
[333939839,1722639058977,-1794.27731273,0.00015708,2]
[333939840,1722639058987,-1332.10200959,0.00015708,2]
[333939841,1722639059000,-3784.17069278,0.00015708,7]
[333939842,1722639059010,-1162.50606328,0.00015708,2]
[333939843,1722639059020,-151.0,0.00015708,2]
[333939844,1722639059030,-151.0,0.00015708,2]
[333939845,1722639059040,-151.0,0.00015708,2]
[333939846,1722639059053,-151.0,0.00015708,2]
[333939847,1722639059064,-616.214266,0.00015708,2]
[333939848,1722639059076,-394.219739,0.00015708,2]
[333939849,1722639059087,-394.219739,0.00015708,2]
[333939850,1722639059098,-151.0,0.00015708,2]
[333939851,1722639059108,-151.0,0.00015708,2]
[333939852,1722639059118,-151.0,0.00015708,2]
[333939853,1722639059128,-982.73,0.00015708,2]
[333939854,1722639059138,-982.73,0.00015708,2]
[333939855,1722639059147,-982.73,0.00015708,2]
[333939856,1722639059157,-982.73,0.00015708,2]
[333939857,1722639059167,-982.73,0.00015708,2]
[333939858,1722639059177,-982.92,0.00015708,2]
[333939859,1722639059189,-266.62854331,0.00015708,2]
[333939860,1722639059200,-266.62854331,0.00015708,2]
[333939861,1722639059209,-35007.49160913,0.00015709,2]
[333939862,1722639059218,-25655.41473939,0.00015709,2]
[333939863,1722639059356,-2.49579158,0.00015709,2]
[333939864,1722639059369,-459.20355537,0.00015709,2]
[333939865,1722639424068,171.56633397,9.999e-05,2]
[333939866,1722639451538,542.85663904,9.999e-05,2]
[333939867,1722639458816,218.4546097,9.999e-05,2]
[333939868,1722639461599,14948.86164883,9.999e-05,2]
[333939869,1722639463046,2107.09834524,9.999e-05,2]
[333939870,1722639463120,154.79103211,9.999e-05,2]
[333939871,1722639493998,644.57917452,9.999e-05,2]
[333939872,1722639550131,154.79103211,9.999e-05,2]
[333939875,1722639638964,156.81394908,9.999e-05,2]
[333939878,1722640041641,663.67519992,9.999e-05,2]
[333939879,1722640066770,154.96701285,9.999e-05,2]
[333939880,1722640097704,3000.0,0.00027,120]
[333939921,1722640233657,-263.9,0.00010959,2]
[333939922,1722640233667,-300.0,0.00012216,2]
[333939923,1722640233677,-300.0,0.00012216,2]
[333939924,1722640233687,-3686.5427763,0.00012217,2]
[333939932,1722640238563,-6154.93499683,0.00012217,2]
[333939935,1722640238911,-15058.52222687,0.00012217,2]
[333939936,1722640238922,-157.418561,0.00012229,2]
[333939938,1722640238933,-157.418561,0.00012268,2]
[333939940,1722640238943,-157.418561,0.00012308,2]
[333939942,1722640238952,-157.418561,0.00012348,2]
[333939956,1722640239104,-157.418561,0.00012388,2]
[333939958,1722640239113,-157.418561,0.00012428,2]
[333939960,1722640239122,-157.418561,0.00012468,2]
[333939962,1722640239132,-157.418561,0.00012507,2]
[333939964,1722640239141,-157.418561,0.00012547,2]
[333939966,1722640239150,-157.418561,0.00012587,2]
[333939968,1722640239159,-157.418561,0.00012627,2]
[333939970,1722640239168,-157.418561,0.00012667,2]
[333939972,1722640239178,-157.418561,0.00012707,2]
[333939974,1722640239188,-157.418561,0.00012746,2]
[333939976,1722640239198,-157.418561,0.00012786,2]
[333939978,1722640239207,-157.418561,0.00012826,2]
[333939980,1722640239217,-157.418561,0.00012866,2]
[333939982,1722640239226,-171.735751,0.00012986,2]
[333939984,1722640239236,-365.0,0.00013408,2]
[333939986,1722640239245,-300.0,0.00013438,2]
[333939988,1722640239255,-2021.53915418,0.00013598,2]
[333939990,1722640239265,-32140.6474993,0.00013688,2]
[333939992,1722640239275,-500.0,0.00013697,2]
[333939994,1722640239284,-500.0,0.00013697,2]
[333939996,1722640239294,-503.03495162,0.00013698,2]
[333939998,1722640239306,-500.60486321,0.00013698,2]
[333940000,1722640239315,-500.0,0.00013698,2]
[333940002,1722640239325,-500.0,0.00013698,2]
[333940004,1722640239334,-500.0,0.00013698,2]
[333940006,1722640239349,-500.0,0.00013698,2]
[333940008,1722640239358,-500.0,0.00013698,2]
[333940010,1722640239368,-500.0,0.00013698,2]
[333940012,1722640239377,-500.0,0.00013698,2]
[333940014,1722640239389,-500.0,0.00013698,2]
[333940016,1722640239398,-515.02745838,0.00013698,2]
[333940018,1722640239408,-344.94435489,0.00013698,2]
[333940020,1722640239418,-333.58264193,0.00013698,2]
[333940022,1722640239428,-500.0,0.00013698,2]
[333940023,1722640239439,-500.0,0.00013698,2]
[333940025,1722640239448,-500.0,0.00013698,2]
[333940027,1722640239458,-500.0,0.00013698,2]
[333940029,1722640239468,-500.0,0.00013698,2]
[333940031,1722640239478,-500.0,0.00013698,2]
[333940033,1722640239488,-500.95327148,0.00013698,2]
[333940035,1722640239498,-500.0,0.00013698,2]
[333940037,1722640239508,-500.0,0.00013698,2]
[333940039,1722640239518,-500.0,0.00013698,2]
[333940041,1722640239528,-500.0,0.00013698,2]
[333940043,1722640239538,-509.76499794,0.00013698,2]
[333940045,1722640239548,-500.0,0.00013698,2]
[333940047,1722640239557,-500.0,0.00013698,2]
[333940048,1722640239566,-519.39971363,0.00013698,2]
[333940050,1722640239576,-500.0,0.00013698,2]
[333940052,1722640239585,-500.0,0.00013698,2]
[333940054,1722640239595,-500.0,0.00013698,2]
[333940056,1722640239604,-500.0,0.00013698,2]
[333940058,1722640239613,-500.0,0.00013698,2]
[333940059,1722640239623,-500.0,0.00013698,2]
[333940060,1722640239632,-508.81581377,0.00013698,2]
[333940061,1722640239641,-500.0,0.00013698,2]
[333940062,1722640239651,-500.0,0.00013698,2]
[333940063,1722640239662,-500.0,0.00013698,2]
[333940064,1722640239672,-500.0,0.00013698,2]
[333940065,1722640239682,-511.09747774,0.00013698,2]
[333940066,1722640239693,-500.0,0.00013698,2]
[333940067,1722640239706,-500.0,0.00013698,2]
[333940068,1722640239717,-500.0,0.00013698,2]
[333940069,1722640239727,-328.72391075,0.00013698,2]
[333940070,1722640239736,-500.0,0.00013698,2]
[333940071,1722640239746,-500.0,0.00013698,2]
[333940072,1722640239755,-500.0,0.00013698,2]
[333940073,1722640239765,-500.0,0.00013698,2]
[333940074,1722640239774,-500.0,0.00013698,2]
[333940075,1722640239785,-500.0,0.00013698,2]
[333940076,1722640239795,-500.0,0.00013698,2]
[333940077,1722640239807,-500.0,0.00013698,2]
[333940078,1722640239816,-500.0,0.00013698,2]
[333940081,1722640239826,-500.0,0.00013698,2]
[333940082,1722640239836,-500.0,0.00013698,2]
[333940083,1722640239845,-500.0,0.00013698,2]
[333940084,1722640239855,-500.0,0.00013698,2]
[333940085,1722640239865,-500.0,0.00013698,2]
[333940086,1722640239875,-500.0,0.00013698,2]
[333940087,1722640239884,-500.0,0.00013698,2]
[333940088,1722640239894,-503.97136009,0.00013698,2]
[333940089,1722640239904,-500.0,0.00013698,2]
[333940090,1722640239914,-502.84952365,0.00013698,2]
[333940091,1722640239923,-500.0,0.00013698,2]
[333940092,1722640239932,-500.0,0.00013698,2]
[333940093,1722640239942,-500.0,0.00013698,2]
[333940094,1722640239952,-500.0,0.00013698,2]
[333940095,1722640239961,-500.0,0.00013698,2]
[333940098,1722640239971,-500.0,0.00013698,2]
[333940101,1722640239981,-500.0,0.00013698,2]
[333940103,1722640239990,-508.45396723,0.00013698,2]
[333940105,1722640239999,-500.0,0.00013698,2]
[333940107,1722640240009,-500.0,0.00013698,2]
[333940109,1722640240018,-500.0,0.00013698,2]
[333940111,1722640240028,-500.0,0.00013698,2]
[333940113,1722640240037,-500.0,0.00013698,2]
[333940115,1722640240046,-500.0,0.00013698,2]
[333940117,1722640240057,-500.0,0.00013698,2]
[333940119,1722640240066,-501.61898324,0.00013698,2]
[333940121,1722640240076,-500.0,0.00013698,2]
[333940123,1722640240086,-500.0,0.00013698,2]
[333940124,1722640240097,-500.0,0.00013698,2]
[333940125,1722640240106,-500.0,0.00013698,2]
[333940126,1722640240115,-500.0,0.00013698,2]
[333940127,1722640240127,-500.0,0.00013698,2]
[333940128,1722640240139,-500.0,0.00013698,2]
[333940129,1722640240149,-500.0,0.00013698,2]
[333940130,1722640240160,-500.0,0.00013698,2]
[333940131,1722640240170,-500.0,0.00013698,2]
[333940132,1722640240182,-500.0,0.00013698,2]
[333940133,1722640240192,-500.0,0.00013698,2]
[333940134,1722640240202,-500.0,0.00013698,2]
[333940135,1722640240213,-500.0,0.00013698,2]
[333940136,1722640240223,-500.0,0.00013698,2]
[333940137,1722640240234,-500.0,0.00013698,2]
[333940139,1722640240244,-500.0,0.00013698,2]
[333940141,1722640240254,-500.0,0.00013698,2]
[333940143,1722640240265,-500.0,0.00013698,2]
[333940144,1722640240276,-238.83141729,0.00013698,2]
[333940146,1722640240285,-500.0,0.00013698,2]
[333940148,1722640240295,-500.0,0.00013698,2]
[333940150,1722640240304,-500.0,0.00013698,2]
[333940151,1722640240314,-284.69108088,0.00013698,2]
[333940153,1722640240324,-500.0,0.00013698,2]
[333940155,1722640240333,-500.0,0.00013698,2]
[333940157,1722640240349,-500.0,0.00013698,2]
[333940159,1722640240360,-500.0,0.00013698,2]
[333940161,1722640240370,-500.0,0.00013698,2]
[333940162,1722640240380,-500.0,0.00013698,2]
[333940163,1722640240391,-500.0,0.00013698,2]
[333940164,1722640240401,-500.0,0.00013698,2]
[333940165,1722640240411,-496.59385852,0.00013698,2]
[333940166,1722640240424,-500.0,0.00013698,2]
[333940167,1722640240434,-500.0,0.00013698,2]
[333940168,1722640240446,-500.0,0.00013698,2]
[333940169,1722640240456,-500.0,0.00013698,2]
[333940170,1722640240467,-500.0,0.00013698,2]
[333940171,1722640240477,-539.44620326,0.00013698,2]
[333940172,1722640240487,-500.0,0.00013698,2]
[333940173,1722640240498,-500.0,0.00013698,2]
[333940174,1722640240508,-500.0,0.00013698,2]
[333940175,1722640240518,-500.0,0.00013698,2]
[333940177,1722640240527,-504.29453083,0.00013698,2]
[333940179,1722640240537,-500.0,0.00013698,2]
[333940181,1722640240547,-500.0,0.00013698,2]
[333940182,1722640240556,-500.0,0.00013698,2]
[333940183,1722640240566,-500.0,0.00013698,2]
[333940184,1722640240575,-500.0,0.00013698,2]
[333940185,1722640240585,-500.0,0.00013698,2]
[333940186,1722640240595,-500.0,0.00013698,2]
[333940187,1722640240608,-500.0,0.00013698,2]
[333940188,1722640240617,-500.0,0.00013698,2]
[333940189,1722640240627,-524.65,0.00013698,2]
[333940190,1722640240636,-500.0,0.00013698,2]
[333940191,1722640240646,-150.0,0.00013698,2]